fUST/lending_fUST_20250811
["ID","MTS","AMOUNT","RATE_DAILY","PERIOD"]
[378482196,1754883041355,-460.0,0.00020229,2]
[378482197,1754883041364,-2409.77,0.00020229,2]
[378482199,1754883041374,-807.32,0.00020229,2]
[378482200,1754883041384,-460.0,0.00020229,2]
[378482202,1754883041393,-460.0,0.00020229,2]
[378482204,1754883041403,-460.0,0.00020229,2]
[378482207,1754883041413,-460.0,0.00020229,2]
[378482208,1754883041422,-1639.77,0.00020229,2]
[378482210,1754883041432,-460.0,0.00020229,2]
[378482213,1754883041442,-500.0,0.00020229,2]
[378482214,1754883041452,-193.47361034,0.00020273,2]
[378482215,1754883041462,-500.0,0.00020273,2]
[378482216,1754883041471,-501.6936613,0.00020273,2]
[378482217,1754883041481,-502.63059083,0.00020273,2]
[378482218,1754883041491,-500.0,0.00020273,2]
[378482219,1754883041501,-200.0,0.00020352,15]
[378482220,1754883041510,-200.0,0.00020352,15]
[378482221,1754883041520,-200.0,0.00020352,15]
[378482223,1754883041530,-200.0,0.00020352,15]
[378482225,1754883041541,-200.0,0.00020352,15]
[378482227,1754883041555,-5452.22828288,0.00020402,3]
[378482229,1754883041564,-500.0,0.000205,2]
[378482232,1754883041573,-460.0,0.00020501,2]
[378482233,1754883041582,-162.89374308,0.00020501,2]
[378482235,1754883041592,-519.22448214,0.00020501,2]
[378482237,1754883041601,-460.0,0.00020501,2]
[378482239,1754883041611,-460.0,0.00020501,2]
[378482241,1754883041622,-460.0,0.00020501,2]
[378482243,1754883041631,-460.0,0.00020501,2]
[378482244,1754883041641,-460.0,0.00020501,2]
[378482245,1754883041650,-1302.69,0.00020501,2]
[378482246,1754883041660,-837.1,0.00020501,2]
[378482248,1754883041671,-460.0,0.00020501,2]
[378482250,1754883041680,-460.0,0.00020501,2]
[378482252,1754883041689,-460.0,0.00020501,2]
[378482254,1754883041698,-2508.06,0.00020501,2]
[378482256,1754883041708,-988.03,0.00020501,2]
[378482258,1754883041718,-859.43,0.00020501,2]
[378482259,1754883041727,-460.0,0.00020501,2]
[378482260,1754883041736,-460.0,0.00020501,2]
[378482261,1754883041746,-1386.06,0.00020501,2]
[378482262,1754883041756,-460.0,0.00020501,2]
[378482263,1754883041766,-2011.67,0.00020501,2]
[378482264,1754883041776,-1528.05,0.00020501,2]
[378482267,1754883041787,-460.0,0.00020501,2]
[378482269,1754883041796,-460.0,0.00020501,2]
[378482271,1754883041806,-460.0,0.00020501,2]
[378482273,1754883041815,-1737.49,0.00020501,2]
[378482275,1754883041825,-727.19,0.00020501,2]
[378482277,1754883041835,-460.0,0.00020501,2]
[378482279,1754883041844,-265.09,0.00020501,2]
[378482281,1754883041853,-218.34002774,0.00020501,2]
[378482283,1754883041863,-460.28,0.00020501,2]
[378482285,1754883041872,-460.0,0.00020501,2]
[378482287,1754883041881,-460.0,0.00020501,2]
[378482289,1754883041890,-1903.58,0.00020501,2]
[378482291,1754883041899,-460.0,0.00020501,2]
[378482293,1754883041908,-460.0,0.00020501,2]
[378482295,1754883041918,-469.77681379,0.00020501,2]
[378482297,1754883041927,-460.0,0.00020501,2]
[378482299,1754883041936,-460.0,0.00020501,2]
[378482301,1754883041945,-460.0,0.00020501,2]
[378482302,1754883041954,-460.0,0.00020501,2]
[378482305,1754883041964,-460.0,0.00020501,2]
[378482307,1754883041973,-540.8001989,0.00020501,2]
[378482308,1754883041982,-460.0,0.00020501,2]
[378482310,1754883041991,-460.0,0.00020501,2]
[378482313,1754883042000,-460.0,0.00020501,2]
[378482315,1754883042010,-1142.45,0.00020501,2]
[378482316,1754883042019,-460.0,0.00020501,2]
[378482319,1754883042029,-513.3,0.00020501,2]
[378482321,1754883042038,-460.0,0.00020501,2]
[378482323,1754883042049,-486.501127,0.00020501,2]
[378482325,1754883042058,-460.0,0.00020501,2]
[378482327,1754883042067,-460.0,0.00020501,2]
[378482329,1754883042076,-460.0,0.00020501,2]
[378482331,1754883042085,-2139.93,0.00020501,2]
[378482333,1754883042095,-460.0,0.00020501,2]
[378482335,1754883042104,-460.0,0.00020501,2]
[378482337,1754883042113,-460.0,0.00020501,2]
[378482338,1754883042123,-1162.24,0.00020501,2]
[378482340,1754883042133,-460.0,0.00020501,2]
[378482343,1754883042142,-460.0,0.00020501,2]
[378482344,1754883042152,-563.31066332,0.00020501,2]
[378482345,1754883042161,-460.0,0.00020501,2]
[378482347,1754883042171,-2066.55,0.00020501,2]
[378482349,1754883042180,-460.0,0.00020501,2]
[378482351,1754883042190,-460.0,0.00020501,2]
[378482353,1754883042199,-460.0,0.00020501,2]
[378482354,1754883042208,-460.0,0.00020501,2]
[378482356,1754883042218,-151.0,0.00020502,2]
[378482358,1754883042227,-151.0,0.00020502,2]
[378482360,1754883042236,-500.0,0.00020502,2]
[378482362,1754883042246,-151.0,0.00020502,2]
[378482364,1754883042255,-501.33228902,0.00020502,2]
[378482366,1754883042264,-500.0,0.00020502,2]
[378482368,1754883042274,-151.0,0.00020502,2]
[378482370,1754883042283,-151.0,0.00020502,2]
[378482372,1754883042293,-151.0,0.00020502,2]
[378482374,1754883042302,-281.5763041,0.00020502,2]
[378482376,1754883042312,-500.0,0.00020502,2]
[378482378,1754883042321,-500.0,0.00020502,2]
[378482380,1754883042330,-605.52811729,0.00020502,2]
[378482382,1754883042340,-248.00239518,0.00020502,2]
[378482384,1754883042349,-209.19702929,0.00020502,2]
[378482386,1754883042358,-242.23939778,0.00020502,2]
[378482388,1754883042367,-151.0,0.00020502,2]
[378482390,1754883042377,-151.0,0.00020502,2]
[378482392,1754883042386,-168.54813275,0.00020502,2]
[378482394,1754883042395,-500.0,0.00020502,2]
[378482396,1754883042404,-175.15319926,0.00020502,2]
[378482398,1754883042414,-460.0,0.00020502,2]
[378482399,1754883042423,-460.0,0.00020502,2]
[378482400,1754883042432,-693.47,0.00020502,2]
[378482402,1754883042441,-460.0,0.00020502,2]
[378482404,1754883042451,-460.0,0.00020502,2]
[378482405,1754883042460,-871.25,0.00020502,2]
[378482407,1754883042470,-460.0,0.00020502,2]
[378482408,1754883042479,-460.0,0.00020502,2]
[378482410,1754883042488,-460.0,0.00020502,2]
[378482412,1754883042497,-460.0,0.00020502,2]
[378482413,1754883042507,-500.0,0.00020502,2]
[378482415,1754883042517,-460.0,0.00020502,2]
[378482417,1754883042526,-1490.3,0.00020502,2]
[378482418,1754883042536,-540.04,0.00020502,2]
[378482420,1754883042548,-460.0,0.00020502,2]
[378482421,1754883042557,-195.77767607,0.00020502,2]
[378482423,1754883042566,-460.0,0.00020502,2]
[378482425,1754883042575,-460.0,0.00020502,2]
[378482426,1754883042586,-621.27,0.00020502,2]
[378482428,1754883042595,-460.0,0.00020502,2]
[378482430,1754883042604,-460.0,0.00020502,2]
[378482431,1754883042615,-460.0,0.00020502,2]
[378482433,1754883042626,-460.0,0.00020502,2]
[378482435,1754883042635,-958.67,0.00020502,2]
[378482436,1754883042644,-500.0,0.00020503,2]
[378482438,1754883042654,-605.92117116,0.00020503,2]
[378482439,1754883042663,-500.0,0.00020503,2]
[378482441,1754883042672,-448.64899945,0.00020503,2]
[378482443,1754883042682,-152.3066297,0.00020503,2]
[378482444,1754883042691,-243.69138153,0.00020503,2]
[378482446,1754883042700,-364.67356899,0.00020503,2]
[378482448,1754883042709,-460.0,0.00020503,2]
[378482449,1754883042718,-460.0,0.00020503,2]
[378482451,1754883042727,-460.0,0.00020503,2]
[378482453,1754883042737,-285.24,0.00020503,2]
[378482456,1754883042746,-460.0,0.00020503,2]
[378482458,1754883042755,-423.7201761,0.00020503,2]
[378482460,1754883042765,-460.0,0.00020503,2]
[378482462,1754883042774,-2409.77,0.00020503,2]
[378482464,1754883042783,-500.0,0.00020503,2]
[378482465,1754883042793,-807.32,0.00020503,2]
[378482467,1754883042802,-460.0,0.00020503,2]
[378482470,1754883042811,-460.0,0.00020503,2]
[378482472,1754883042820,-460.0,0.00020503,2]
[378482474,1754883042829,-1639.77,0.00020503,2]
[378482477,1754883042840,-460.0,0.00020503,2]
[378482479,1754883042849,-500.0,0.00020503,2]
[378482482,1754883042859,-500.81682096,0.00020656,2]
[378482485,1754883042868,-500.0,0.00020656,2]
[378482488,1754883042877,-1403.447397,0.00020658,2]
[378482491,1754883042887,-6679.0216735,0.00020674,2]
[378482492,1754883042897,-500.0,0.0002077,2]
[378482494,1754883042907,-500.0,0.0002077,2]
[378482496,1754883042916,-503.95864138,0.0002077,2]
[378482498,1754883042926,-500.0,0.0002077,2]
[378482499,1754883042935,-505.81468852,0.0002077,2]
[378482501,1754883042945,-500.0,0.0002077,2]
[378482503,1754883042954,-500.0,0.00020773,2]
[378482504,1754883042963,-500.0,0.00020773,2]
[378482506,1754883042972,-500.0,0.00020773,2]
[378482507,1754883042982,-364.43862818,0.00020773,2]
[378482509,1754883042991,-500.0,0.00020773,2]
[378482511,1754883043000,-500.0,0.00020773,2]
[378482512,1754883043009,-500.0,0.00020773,2]
[378482514,1754883043019,-504.67711167,0.00020773,2]
[378482516,1754883043029,-1799.19001359,0.00020773,2]
[378482518,1754883043038,-1799.19001359,0.00020773,2]
[378482520,1754883043049,-1799.19001359,0.00020773,2]
[378482521,1754883043058,-1799.19001359,0.00020773,2]
[378482523,1754883043069,-1799.19001359,0.00020773,2]
[378482525,1754883043078,-1799.19001359,0.00020773,2]
[378482526,1754883043087,-1799.19001359,0.00020773,2]
[378482528,1754883043096,-562.23469659,0.00020773,2]
[378482530,1754883043105,-1799.19001359,0.00020773,2]
[378482532,1754883043115,-1799.19001359,0.00020773,2]
[378482533,1754883043124,-1799.19001359,0.00020773,2]
[378482535,1754883043134,-1799.19001359,0.00020773,2]
[378482537,1754883043143,-1799.19001359,0.00020773,2]
[378482539,1754883043152,-1799.19001359,0.00020773,2]
[378482540,1754883043162,-1799.19001359,0.00020773,2]
[378482542,1754883043171,-1799.19001359,0.00020773,2]
[378482544,1754883043180,-1799.19001359,0.00020773,2]
[378482546,1754883043189,-500.0,0.00020774,2]
[378482547,1754883043198,-460.0,0.00020775,2]
[378482549,1754883043207,-460.0,0.00020775,2]
[378482551,1754883043218,-460.0,0.00020775,2]
[378482553,1754883043227,-460.0,0.00020775,2]
[378482554,1754883043237,-460.0,0.00020775,2]
[378482556,1754883043246,-460.0,0.00020775,2]
[378482558,1754883043255,-1302.69,0.00020775,2]
[378482560,1754883043264,-837.1,0.00020775,2]
[378482561,1754883043274,-460.0,0.00020775,2]
[378482563,1754883043284,-460.0,0.00020775,2]
[378482565,1754883043293,-460.0,0.00020775,2]
[378482567,1754883043302,-2508.06,0.00020775,2]
[378482568,1754883043311,-988.03,0.00020775,2]
[378482570,1754883043320,-859.43,0.00020775,2]
[378482572,1754883043330,-460.0,0.00020775,2]
[378482574,1754883043340,-460.0,0.00020775,2]
[378482576,1754883043349,-1386.06,0.00020775,2]
[378482577,1754883043359,-460.0,0.00020775,2]
[378482579,1754883043368,-2011.67,0.00020775,2]
[378482581,1754883043378,-1528.05,0.00020775,2]
[378482583,1754883043387,-460.0,0.00020775,2]
[378482584,1754883043396,-460.0,0.00020775,2]
[378482586,1754883043408,-460.0,0.00020775,2]
[378482588,1754883043417,-1737.49,0.00020775,2]
[378482590,1754883043427,-727.19,0.00020775,2]
[378482591,1754883043436,-460.0,0.00020775,2]
[378482593,1754883043445,-460.0,0.00020775,2]
[378482595,1754883043455,-460.0,0.00020775,2]
[378482597,1754883043464,-1903.58,0.00020775,2]
[378482598,1754883043473,-460.0,0.00020775,2]
[378482600,1754883043483,-460.0,0.00020775,2]
[378482612,1754883043612,-460.0,0.00020775,2]
[378482614,1754883043640,-460.0,0.00020775,2]
[378482616,1754883043651,-460.0,0.00020775,2]
[378482618,1754883043662,-265.61592185,0.00020775,2]
[378482620,1754883043672,-460.0,0.00020775,2]
[378482622,1754883043683,-460.0,0.00020775,2]
[378482623,1754883043693,-1142.45,0.00020775,2]
[378482625,1754883043703,-460.0,0.00020775,2]
[378482627,1754883043713,-513.3,0.00020775,2]
[378482629,1754883043722,-469.9,0.00020775,2]
[378482631,1754883043733,-460.0,0.00020775,2]
[378482632,1754883043743,-460.0,0.00020775,2]
[378482634,1754883043752,-602.22383518,0.00020775,2]
[378482636,1754883043762,-2139.93,0.00020775,2]
[378482638,1754883043772,-460.0,0.00020775,2]
[378482640,1754883043781,-460.0,0.00020775,2]
[378482641,1754883043790,-375.72965905,0.00020775,2]
[378482643,1754883043801,-1162.24,0.00020775,2]
[378482645,1754883043811,-460.0,0.00020775,2]
[378482647,1754883043821,-460.0,0.00020775,2]
[378482649,1754883043831,-460.0,0.00020775,2]
[378482650,1754883043840,-2066.55,0.00020775,2]
[378482652,1754883043851,-460.0,0.00020775,2]
[378482654,1754883043862,-460.0,0.00020775,2]
[378482656,1754883043871,-460.0,0.00020775,2]
[378482658,1754883043881,-259.81747322,0.00020776,2]
[378482659,1754883043890,-151.0,0.00020776,2]
[378482661,1754883043899,-629.83116402,0.00020776,2]
[378482663,1754883043909,-153.12418074,0.00020776,2]
[378482665,1754883043918,-259.84493696,0.00020776,2]
[378482666,1754883043927,-151.0,0.00020776,2]
[378482668,1754883043937,-254.04480665,0.00020776,2]
[378482670,1754883043947,-151.0,0.00020776,2]
[378482672,1754883043957,-500.0,0.00020776,2]
[378482674,1754883043966,-618.07472005,0.00020776,2]
[378482675,1754883043976,-200.60318908,0.00020776,2]
[378482677,1754883043986,-151.0,0.00020776,2]
[378482679,1754883043995,-500.0,0.00020776,2]
[378482681,1754883044005,-460.0,0.00020776,2]
[378482683,1754883044015,-607.79741401,0.00020776,2]
[378482684,1754883044024,-693.47,0.00020776,2]
[378482686,1754883044034,-460.0,0.00020776,2]
[378482688,1754883044044,-460.0,0.00020776,2]
[378482690,1754883044053,-871.25,0.00020776,2]
[378482691,1754883044062,-460.0,0.00020776,2]
[378482693,1754883044072,-460.0,0.00020776,2]
[378482695,1754883044081,-460.0,0.00020776,2]
[378482697,1754883044090,-460.0,0.00020776,2]
[378482699,1754883044099,-500.0,0.00020776,2]
[378482701,1754883044109,-460.0,0.00020776,2]
[378482703,1754883044118,-1490.3,0.00020776,2]
[378482705,1754883044127,-540.04,0.00020776,2]
[378482707,1754883044137,-460.0,0.00020776,2]
[378482708,1754883044147,-460.0,0.00020776,2]
[378482710,1754883044157,-621.27,0.00020776,2]
[378482712,1754883044167,-460.0,0.00020776,2]
[378482714,1754883044176,-460.0,0.00020776,2]
[378482716,1754883044186,-958.67,0.00020776,2]
[378482717,1754883044195,-502.27384094,0.00020777,2]
[378482719,1754883044204,-500.0,0.00020777,2]
[378482721,1754883044213,-460.0,0.00020777,2]
[378482723,1754883044224,-460.0,0.00020777,2]
[378482724,1754883044233,-460.0,0.00020777,2]
[378482726,1754883044242,-2409.77,0.00020777,2]
[378482728,1754883044252,-807.32,0.00020777,2]
[378482730,1754883044261,-460.0,0.00020777,2]
[378482732,1754883044271,-460.0,0.00020777,2]
[378482733,1754883044280,-460.0,0.00020777,2]
[378482735,1754883044290,-1639.77,0.00020777,2]
[378482737,1754883044300,-460.0,0.00020777,2]
[378482739,1754883044310,-500.0,0.00020778,2]
[378482741,1754883044319,-500.0,0.00020778,2]
[378482742,1754883044329,-500.0,0.00020806,2]
[378482744,1754883044338,-501.45717092,0.00020806,2]
[378482746,1754883044347,-500.0,0.00020806,2]
[378482748,1754883044356,-500.0,0.00020821,2]
[378482749,1754883044365,-628.32778718,0.00020873,2]
[378482751,1754883044375,-505.09810618,0.00020873,2]
[378482753,1754883044384,-500.88918197,0.00020993,2]
[378482755,1754883044393,-1077.64062065,0.00021,2]
[378482757,1754883044403,-202.87297087,0.00021,2]
[378482758,1754883044412,-500.0,0.00021048,2]
[378482760,1754883044421,-378.38,0.00021049,2]
[378482762,1754883044430,-460.0,0.00021049,2]
[378482764,1754883044439,-460.0,0.00021049,2]
[378482766,1754883044448,-460.0,0.00021049,2]
[378482767,1754883044458,-460.0,0.00021049,2]
[378482769,1754883044467,-1302.69,0.00021049,2]
[378482771,1754883044476,-837.1,0.00021049,2]
[378482773,1754883044486,-460.0,0.00021049,2]
[378482775,1754883044495,-460.0,0.00021049,2]
[378482776,1754883044504,-2508.06,0.00021049,2]
[378482778,1754883044513,-988.03,0.00021049,2]
[378482780,1754883044523,-859.43,0.00021049,2]
[378482782,1754883044532,-460.0,0.00021049,2]
[378482783,1754883044541,-460.0,0.00021049,2]
[378482785,1754883044555,-1386.06,0.00021049,2]
[378482787,1754883044564,-460.0,0.00021049,2]
[378482789,1754883044573,-2011.67,0.00021049,2]
[378482791,1754883044583,-1528.05,0.00021049,2]
[378482793,1754883044594,-460.0,0.00021049,2]
[378482794,1754883044604,-460.0,0.00021049,2]
[378482796,1754883044613,-460.0,0.00021049,2]
[378482798,1754883044624,-727.19,0.00021049,2]
[378482800,1754883044633,-460.0,0.00021049,2]
[378482802,1754883044643,-460.0,0.00021049,2]
[378482803,1754883044653,-536.37347768,0.00021049,2]
[378482805,1754883044662,-1903.58,0.00021049,2]
[378482807,1754883044671,-460.0,0.00021049,2]
[378482809,1754883044680,-460.0,0.00021049,2]
[378482810,1754883044690,-460.0,0.00021049,2]
[378482812,1754883044699,-460.0,0.00021049,2]
[378482814,1754883044710,-460.0,0.00021049,2]
[378482816,1754883044720,-460.0,0.00021049,2]
[378482818,1754883044729,-1142.45,0.00021049,2]
[378482820,1754883044739,-460.0,0.00021049,2]
[378482822,1754883044750,-513.3,0.00021049,2]
[378482823,1754883044759,-460.0,0.00021049,2]
[378482825,1754883044770,-460.0,0.00021049,2]
[378482827,1754883044779,-460.0,0.00021049,2]
[378482829,1754883044789,-460.0,0.00021049,2]
[378482831,1754883044799,-1162.24,0.00021049,2]
[378482832,1754883044808,-460.0,0.00021049,2]
[378482834,1754883044817,-460.0,0.00021049,2]
[378482836,1754883044826,-2066.55,0.00021049,2]
[378482838,1754883044837,-460.0,0.00021049,2]
[378482840,1754883044848,-460.0,0.00021049,2]
[378482842,1754883044857,-199.60582241,0.0002105,2]
[378482844,1754883044868,-151.0,0.0002105,2]
[378482845,1754883044877,-151.0,0.0002105,2]
[378482847,1754883044887,-500.0,0.0002105,2]
[378482849,1754883044897,-224.39915183,0.0002105,2]
[378482851,1754883044906,-500.0,0.0002105,2]
[378482853,1754883044916,-693.47,0.0002105,2]
[378482854,1754883044925,-460.0,0.0002105,2]
[378482856,1754883044934,-460.0,0.0002105,2]
[378482858,1754883044943,-871.25,0.0002105,2]
[378482860,1754883044953,-460.0,0.0002105,2]
[378482862,1754883044962,-460.0,0.0002105,2]
[378482864,1754883044971,-460.0,0.0002105,2]
[378482865,1754883044981,-500.0,0.0002105,2]
[378482867,1754883044990,-460.0,0.0002105,2]
[378482869,1754883045000,-1490.3,0.0002105,2]
[378482871,1754883045010,-540.04,0.0002105,2]
[378482873,1754883045019,-460.0,0.0002105,2]
[378482874,1754883045028,-460.0,0.0002105,2]
[378482876,1754883045038,-621.27,0.0002105,2]
[378482878,1754883045049,-460.0,0.0002105,2]
[378482880,1754883045059,-460.0,0.0002105,2]
[378482882,1754883045068,-958.67,0.0002105,2]
[378482883,1754883045077,-460.0,0.00021051,2]
[378482885,1754883045087,-460.0,0.00021051,2]
[378482887,1754883045096,-460.0,0.00021051,2]
[378482889,1754883045106,-2409.77,0.00021051,2]
[378482891,1754883045116,-452.6,0.00021051,2]
[378482893,1754883045126,-807.32,0.00021051,2]
[378482895,1754883045136,-460.0,0.00021051,2]
[378482897,1754883045145,-460.0,0.00021051,2]
[378482899,1754883045155,-460.0,0.00021051,2]
[378482901,1754883045164,-1639.77,0.00021051,2]
[378482903,1754883045174,-460.0,0.00021051,2]
[378482905,1754883045184,-500.0,0.00021073,2]
[378482907,1754883045193,-500.0,0.00021073,2]
[378482909,1754883045203,-501.14541372,0.00021073,2]
[378482911,1754883045213,-2139.93,0.00021122,2]
[378482913,1754883045222,-2139.93,0.00021132,2]
[378482915,1754883045231,-1403.447397,0.00021187,2]
[378482917,1754883045241,-512.65551404,0.00021204,2]
[378482919,1754883045250,-160.0,0.00021255,2]
[378482921,1754883045260,-160.0,0.00021266,2]
[378482923,1754883045269,-231.9940742,0.00021266,2]
[378482925,1754883045278,-215.4905783,0.00021266,2]
[378482927,1754883045287,-843.18994796,0.00021266,2]
[378482928,1754883045297,-312.16666667,0.00021266,2]
[378482929,1754883045307,-160.0,0.00021266,2]
[378482930,1754883045315,-461.69158338,0.00021266,2]
[378482931,1754883045325,-527.9539256,0.00021266,2]
[378482932,1754883045335,-12671.21867243,0.00021266,2]
[378482933,1754883045345,-160.0,0.00021266,2]
[378482934,1754883045355,-160.0,0.00021266,2]
[378482935,1754883045364,-160.0,0.00021266,2]
[378482936,1754883045373,-160.0,0.00021266,2]
[378482937,1754883045382,-160.0,0.00021266,2]
[378482938,1754883045392,-216.68257536,0.00021266,2]
[378482939,1754883045401,-160.0,0.0002127,2]
[378482940,1754883045410,-160.0,0.0002127,2]
[378482941,1754883045419,-1000.0,0.00021318,2]
[378482942,1754883045429,-1000.0,0.00021318,2]
[378482943,1754883045439,-1000.0,0.00021321,2]
[378482944,1754883045448,-1000.0,0.00021321,2]
[378482945,1754883045457,-1000.0,0.00021321,2]
[378482946,1754883045466,-1001.84892132,0.00021321,2]
[378482947,1754883045474,-460.0,0.00021323,2]
[378482948,1754883045483,-460.0,0.00021323,2]
[378482949,1754883045492,-460.0,0.00021323,2]
[378482950,1754883045502,-432.470631,0.00021323,2]
[378482951,1754883045511,-1302.69,0.00021323,2]
[378482952,1754883045521,-837.1,0.00021323,2]
[378482953,1754883045530,-460.0,0.00021323,2]
[378482954,1754883045540,-460.0,0.00021323,2]
[378482955,1754883045554,-2508.06,0.00021323,2]
[378482956,1754883045563,-988.03,0.00021323,2]
[378482957,1754883045572,-859.43,0.00021323,2]
[378482958,1754883045582,-460.0,0.00021323,2]
[378482959,1754883045593,-460.0,0.00021323,2]
[378482960,1754883045602,-1386.06,0.00021323,2]
[378482961,1754883045611,-460.0,0.00021323,2]
[378482962,1754883045620,-2011.67,0.00021323,2]
[378482963,1754883045632,-1528.05,0.00021323,2]
[378482964,1754883045642,-460.0,0.00021323,2]
[378482965,1754883045651,-460.0,0.00021323,2]
[378482966,1754883045660,-460.0,0.00021323,2]
[378482967,1754883045670,-727.19,0.00021323,2]
[378482968,1754883045679,-460.0,0.00021323,2]
[378482970,1754883045688,-460.0,0.00021323,2]
[378482972,1754883045697,-1903.58,0.00021323,2]
[378482973,1754883045707,-460.0,0.00021323,2]
[378482974,1754883045717,-460.0,0.00021323,2]
[378482975,1754883045726,-460.0,0.00021323,2]
[378482976,1754883045736,-460.0,0.00021323,2]
[378482978,1754883045745,-460.0,0.00021323,2]
[378482979,1754883045754,-460.0,0.00021323,2]
[378482980,1754883045764,-1142.45,0.00021323,2]
[378482982,1754883045773,-460.0,0.00021323,2]
[378482983,1754883045783,-513.3,0.00021323,2]
[378482984,1754883045793,-460.0,0.00021323,2]
[378482986,1754883045802,-460.0,0.00021323,2]
[378482987,1754883045811,-2139.93,0.00021323,2]
[378482988,1754883045820,-460.0,0.00021323,2]
[378482990,1754883045830,-1162.24,0.00021323,2]
[378482991,1754883045839,-460.0,0.00021323,2]
[378482993,1754883045848,-460.0,0.00021323,2]
[378482995,1754883045858,-2066.55,0.00021323,2]
[378482997,1754883045867,-460.0,0.00021323,2]
[378482999,1754883045876,-460.0,0.00021323,2]
[378483001,1754883045886,-201.71476096,0.00021324,2]
[378483003,1754883045895,-154.17513545,0.00021324,2]
[378483009,1754883045937,-479.16867974,0.00021324,2]
[378483011,1754883045946,-510.04715937,0.00021324,2]
[378483013,1754883045955,-556.57689405,0.00021324,2]
[378483015,1754883045965,-693.47,0.00021324,2]
[378483017,1754883045975,-460.0,0.00021324,2]
[378483019,1754883045984,-460.0,0.00021324,2]
[378483021,1754883045994,-871.25,0.00021324,2]
[378483023,1754883046003,-460.0,0.00021324,2]
[378483025,1754883046012,-460.0,0.00021324,2]
[378483027,1754883046022,-391.8637527,0.00021324,2]
[378483029,1754883046031,-1490.3,0.00021324,2]
[378483030,1754883046041,-540.04,0.00021324,2]
[378483033,1754883046051,-460.0,0.00021324,2]
[378483034,1754883046060,-430.2,0.00021324,2]
[378483036,1754883046069,-621.27,0.00021324,2]
[378483038,1754883046079,-474.49386498,0.00021324,2]
[378483040,1754883046088,-460.0,0.00021324,2]
[378483042,1754883046097,-958.67,0.00021324,2]
[378483044,1754883046107,-460.0,0.00021325,2]
[378483046,1754883046116,-193.49106829,0.00021325,2]
[378483048,1754883046126,-460.0,0.00021325,2]
[378483050,1754883046136,-2409.77,0.00021325,2]
[378483052,1754883046145,-807.32,0.00021325,2]
[378483054,1754883046155,-460.0,0.00021325,2]
[378483056,1754883046165,-460.0,0.00021325,2]
[378483058,1754883046175,-460.0,0.00021325,2]
[378483060,1754883046184,-1639.77,0.00021325,2]
[378483062,1754883046193,-460.0,0.00021325,2]
[378483064,1754883046202,-501.99732496,0.00021354,2]
[378483066,1754883046212,-1000.0,0.00021354,2]
[378483068,1754883046221,-160.0,0.00021494,2]
[378483070,1754883046231,-574.1,0.00021531,2]
[378483072,1754883046240,-1226.92,0.00021588,3]
[378483074,1754883046249,-613.46,0.00021588,3]
[378483076,1754883046258,-306.74,0.00021588,3]
[378483078,1754883046268,-527.9539256,0.00021588,3]
[378483080,1754883046278,-461.69158338,0.00021588,3]
[378483082,1754883046287,-12671.21867243,0.00021588,3]